{"text_format":"1","workbook":"xlsx","n_sheets":3,"sheets":["Gradebook","Student Summary","Grading Criteria"],"not_rendered":{"charts":1,"images":1,"macros":1,"external_links":0,"defined_names":11,"comments":0,"pivot_tables":0},"unopened":[],"bounds":{"document_bytes":16777216,"sheet_cells":100000,"rows_first":2000,"rows_last":500,"rows_between":2000,"halvings":0,"cell_chars":16384,"cell_head_chars":4096},"cells_cut":0,"cells_raw":0,"read":"whole","date_system":"1900"}

{"sheet":"Gradebook","index":0,"n_rows":8,"n_cols":9,"rows_kept":8,"cut":false,"hidden":false,"merged":[]}
[null,"Class Name"]
[null,"Teacher Name",null,null,null,"Assignment Date ","2011-01-18","2011-01-25","2011-02-01"]
[null,null,null,null,"Total Possible Points ",{"$f":"SUM(TotalAssignmentPoints[#Data])","v":90},20,20,50]
[null,"Student Name","Performance","Grade","%","Total Points Earned","In-class writing assignment 1","In-class writing assignment 2","Rough Draft Narrative Paper"]
[null,"Student 1",{"$f":"StudentData[[#This Row],[Total Points Earned]]","v":90},{"$f":"IFERROR(VLOOKUP(StudentData[[#This Row],[%]],GradeTable[],2,TRUE),\"\")","v":"A+"},{"$f":"IFERROR(StudentData[[#This Row],[Total Points Earned]]/TotalPoints,\"\")","v":1},{"$f":"IFERROR(SUM(StudentData[[#This Row],[In-class writing assignment 1]]:OFFSET(F5,,COUNTA(TotalAssignmentPoints[]))),\"\")","v":90},20,20,50]
[null,"Student 2",{"$f":"StudentData[[#This Row],[Total Points Earned]]","v":60},{"$f":"IFERROR(VLOOKUP(StudentData[[#This Row],[%]],GradeTable[],2,TRUE),\"\")","v":"D"},{"$f":"IFERROR(StudentData[[#This Row],[Total Points Earned]]/TotalPoints,\"\")","v":0.66666666666666663},{"$f":"IFERROR(SUM(StudentData[[#This Row],[In-class writing assignment 1]]:OFFSET(F6,,COUNTA(TotalAssignmentPoints[]))),\"\")","v":60},10,10,40]
[null,"Student 3",{"$f":"StudentData[[#This Row],[Total Points Earned]]","v":75},{"$f":"IFERROR(VLOOKUP(StudentData[[#This Row],[%]],GradeTable[],2,TRUE),\"\")","v":"B"},{"$f":"IFERROR(StudentData[[#This Row],[Total Points Earned]]/TotalPoints,\"\")","v":0.83333333333333337},{"$f":"IFERROR(SUM(StudentData[[#This Row],[In-class writing assignment 1]]:OFFSET(F7,,COUNTA(TotalAssignmentPoints[]))),\"\")","v":75},20,15,40]
[null,"Average Grade/Scores",null,{"$f":"IFERROR(VLOOKUP(StudentData[[#Totals],[%]],GradeTable[],2,TRUE),\"\")","v":"B"},{"$f":"SUBTOTAL(101,StudentData[%])","v":0.83333333333333337},{"$f":"SUBTOTAL(101,StudentData[Total Points Earned])","v":75},{"$f":"SUBTOTAL(101,StudentData[In-class writing assignment 1])","v":16.666666666666668},{"$f":"SUBTOTAL(101,StudentData[In-class writing assignment 2])","v":15},{"$f":"SUBTOTAL(101,StudentData[Rough Draft Narrative Paper])","v":43.333333333333336}]

{"sheet":"Student Summary","index":1,"n_rows":51,"n_cols":8,"rows_kept":51,"cut":false,"hidden":false,"merged":[[7,1,7,3],[11,1,11,2],[35,1,44,7],[0,0,0,4]]}
["Your School Name"]
[null,{"$f":"TeacherName","v":"Teacher Name"}]
[null,{"$f":"ClassName","v":"Class Name"}]
[null,"Progress to date"]
[null,"2011-09-22"]
[]
[null,"Student Name:"]
[null,"Student 3"]
[]
[]
[null,"Student Rank",null,"Letter Grade","Percentage","Student Points","Total Points","GPA"]
[null,{"$f":"IFERROR(_xlfn.RANK.EQ(VLOOKUP(B8,StudentData[],5,FALSE),StudentData[Total Points Earned]) & \" out of \"&COUNTA(StudentData[Student Name]) & \" students\",\"\")","v":"2 out of 3 students"},null,{"$f":"IFERROR(VLOOKUP(StudentName,StudentData[],3,FALSE),\"\")","v":"B"},{"$f":"IFERROR(VLOOKUP(StudentName,StudentData[],4,FALSE),\"\")","v":0.83333333333333337},{"$f":"IFERROR(VLOOKUP(StudentName,StudentData[],5,FALSE),\"\")","v":75},{"$f":"TotalPoints","v":90},{"$f":"IFERROR(VLOOKUP(E12,GradeTable[],3,TRUE),\"\")","v":3}]
[]
[]
[]
[]
[]
[]
[]
[]
[]
[]
[]
[]
[]
[]
[]
[]
[]
[]
[]
[]
[]
[]
[null,"Teacher Comments"]
[]
[]
[]
[]
[]
[]
[]
[]
[]
[]
[]
[]
[null,"Parent Signature (if required)"]
[]
[]
[null,"X",null,null,null,"Date:"]

{"sheet":"Grading Criteria","index":2,"n_rows":20,"n_cols":4,"rows_kept":20,"cut":false,"hidden":false,"merged":[[4,1,4,3],[2,1,2,4]]}
[null,"Calculate Letter Grade"]
[]
[null,"Enter in the percentage ranges for each letter grade in the table below to cutomize the template to your grading criteria. "]
[]
[null,"GRADE & GPA Table\n(Used to calculate student grades on the Gradebook sheet)"]
[null,"Score","Letter Grade Achieved","GPA"]
[null,0,"F",0]
[null,0.6,"D-",0.67]
[null,0.63,"D",1]
[null,0.67,"D+",1.33]
[null,0.7,"C-",1.67]
[null,0.73,"C",2]
[null,0.77,"C+",2.33]
[null,0.8,"B-",2.67]
[null,0.83,"B",3]
[null,0.87,"B+",3.33]
[null,0.9,"A-",3.67]
[null,0.93,"A",4]
[null,0.97,"A+",4]
[null,"Score and GPA must be entered in Ascending order."]